[Event "Live Chess"]
[Site "Chess.com"]
[Date "2023.05.20"]
[Round "-"]
[White "whitedjohn"]
[Black "PiotrD11"]
[Result "1-0"]
[WhiteElo "1664"]
[BlackElo "1342"]
[TimeControl "300"]
[EndTime "12:39:21 PDT"]
[Termination "whitedjohn won on time"]

1. e4 {[%clk 0:04:57.2]} 1... d5 {[%clk 0:04:59.9]} 2. exd5 {[%clk 0:04:51.1]}
2... Nf6 {[%clk 0:04:58.9]} 3. d4 {[%clk 0:04:48.8]} 3... Nxd5 {[%clk
0:04:57.6]} 4. c4 {[%clk 0:04:47.4]} 4... Nf6 {[%clk 0:04:56.2]} 5. Nf3 {[%clk
0:04:45.3]} 5... e6 {[%clk 0:04:55.7]} 6. Bg5 {[%clk 0:04:41.1]} 6... c6 {[%clk
0:04:53.3]} 7. Nc3 {[%clk 0:04:38.8]} 7... Be7 {[%clk 0:04:51.6]} 8. Be2 {[%clk
0:04:37.2]} 8... h6 {[%clk 0:04:50.7]} 9. Bh4 {[%clk 0:04:33.8]} 9... Nbd7
{[%clk 0:04:47.3]} 10. O-O {[%clk 0:04:30]} 10... O-O {[%clk 0:04:46]} 11. Re1
{[%clk 0:04:27.1]} 11... Bb4 {[%clk 0:04:35.3]} 12. Qb3 {[%clk 0:04:23.3]} 12...
Bxc3 {[%clk 0:04:31.1]} 13. Qxc3 {[%clk 0:04:20.9]} 13... Qc7 {[%clk 0:04:30.6]}
14. Bg3 {[%clk 0:04:01.9]} 14... Qd8 {[%clk 0:04:28.9]} 15. Ne5 {[%clk
0:03:57.7]} 15... Ne4 {[%clk 0:04:19.9]} 16. Qe3 {[%clk 0:03:49.7]} 16... Nxg3
{[%clk 0:04:09.7]} 17. Qxg3 {[%clk 0:03:46.9]} 17... Qb6 {[%clk 0:03:59.3]} 18.
Qc3 {[%clk 0:03:37.5]} 18... Nxe5 {[%clk 0:03:55.7]} 19. dxe5 {[%clk 0:03:35]}
19... Qc7 {[%clk 0:03:48.7]} 20. f4 {[%clk 0:03:24.2]} 20... b6 {[%clk
0:03:46.9]} 21. c5 {[%clk 0:03:16.2]} 21... Bb7 {[%clk 0:03:43.4]} 22. b4 {[%clk
0:03:13]} 22... Rac8 {[%clk 0:03:25.9]} 23. Rad1 {[%clk 0:03:09.5]} 23... a5
{[%clk 0:03:13.3]} 24. a3 {[%clk 0:03:02]} 24... bxc5 {[%clk 0:03:07.8]} 25.
bxc5 {[%clk 0:02:59.1]} 25... Rfd8 {[%clk 0:03:00.4]} 26. Rd6 {[%clk 0:02:54.6]}
26... Rxd6 {[%clk 0:02:44]} 27. cxd6 {[%clk 0:02:51.2]} 27... Qd7 {[%clk
0:02:43.2]} 28. Bf3 {[%clk 0:02:43.6]} 28... Ra8 {[%clk 0:02:29.1]} 29. Rb1
{[%clk 0:02:40.6]} 29... Ra6 {[%clk 0:02:09.2]} 30. Qb3 {[%clk 0:02:33.4]} 30...
Bc8 {[%clk 0:01:59.2]} 31. Qb8 {[%clk 0:02:22]} 31... f6 {[%clk 0:01:49.7]} 32.
Be2 {[%clk 0:02:09.4]} 32... Ra7 {[%clk 0:01:44.5]} 33. Rb6 {[%clk 0:01:46.1]}
33... fxe5 {[%clk 0:01:30.2]} 34. fxe5 {[%clk 0:01:43.8]} 34... Kf7 {[%clk
0:01:22.5]} 35. Bh5+ {[%clk 0:01:32.2]} 35... g6 {[%clk 0:01:19.6]} 36. Bg4
{[%clk 0:01:30.3]} 36... h5 {[%clk 0:01:15.7]} 37. Bf3 {[%clk 0:01:28.4]} 37...
Rb7 {[%clk 0:00:53.8]} 38. Rxb7 {[%clk 0:01:21]} 38... Qxb7 {[%clk 0:00:51.1]}
39. Qxb7+ {[%clk 0:01:17.2]} 39... Bxb7 {[%clk 0:00:50.2]} 40. Kf2 {[%clk
0:01:11.7]} 40... Ke8 {[%clk 0:00:40.6]} 41. Ke3 {[%clk 0:01:10.6]} 41... Kd7
{[%clk 0:00:39.4]} 42. Kd4 {[%clk 0:01:09.8]} 42... Ba6 {[%clk 0:00:37.2]} 43.
Kc5 {[%clk 0:01:06.6]} 43... Bb5 {[%clk 0:00:26.1]} 44. Bd1 {[%clk 0:00:57.8]}
44... h4 {[%clk 0:00:19.8]} 45. a4 {[%clk 0:00:53.8]} 45... Bf1 {[%clk
0:00:14.7]} 46. Bf3 {[%clk 0:00:50.8]} 46... g5 {[%clk 0:00:10.4]} 47. Bxc6+
{[%clk 0:00:45.6]} 47... Kd8 {[%clk 0:00:08.9]} 48. Bf3 {[%clk 0:00:40.7]} 48...
Ba6 {[%clk 0:00:06.5]} 49. Kb6 {[%clk 0:00:37]} 49... Bc4 {[%clk 0:00:04.7]} 50.
Kxa5 {[%clk 0:00:33.1]} 50... Bd5 {[%clk 0:00:03.2]} 51. Bxd5 {[%clk 0:00:29.4]}
51... exd5 {[%clk 0:00:03.1]} 52. Kb5 {[%clk 0:00:27]} 52... g4 {[%clk
0:00:01.9]} 53. Kc5 {[%clk 0:00:23.8]} 53... d4 {[%clk 0:00:00.4]} 54. Kxd4
{[%clk 0:00:21.1]} 1-0

[Event "Live Chess"]
[Site "Chess.com"]
[Date "2023.05.20"]
[Round "-"]
[White "jennybobby44"]
[Black "WelshTiger"]
[Result "0-1"]
[WhiteElo "1863"]
[BlackElo "2406"]
[TimeControl "300"]
[EndTime "12:39:25 PDT"]
[Termination "WelshTiger won by resignation"]

1. Nf3 {[%clk 0:04:57.9]} 1... c5 {[%clk 0:04:56.1]} 2. e4 {[%clk 0:04:56.5]}
2... d6 {[%clk 0:04:54.9]} 3. d3 {[%clk 0:04:55.6]} 3... g6 {[%clk 0:04:53.1]}
4. g3 {[%clk 0:04:55]} 4... Bg7 {[%clk 0:04:52.6]} 5. Bg2 {[%clk 0:04:54.7]}
5... Nc6 {[%clk 0:04:51.6]} 6. O-O {[%clk 0:04:54.2]} 6... e5 {[%clk 0:04:47.3]}
7. c3 {[%clk 0:04:52]} 7... Nge7 {[%clk 0:04:46]} 8. Re1 {[%clk 0:04:44.9]} 8...
O-O {[%clk 0:04:44.6]} 9. Be3 {[%clk 0:04:34.2]} 9... b5 {[%clk 0:04:43.5]} 10.
d4 {[%clk 0:04:32.7]} 10... Qc7 {[%clk 0:04:27.2]} 11. dxc5 {[%clk 0:04:29.7]}
11... dxc5 {[%clk 0:04:25.5]} 12. Bxc5 {[%clk 0:04:27.6]} 12... Be6 {[%clk
0:04:20.6]} 13. b3 {[%clk 0:04:09.9]} 13... Rfd8 {[%clk 0:04:18.1]} 14. Qe2
{[%clk 0:04:04.8]} 14... f6 {[%clk 0:04:17.4]} 15. Nbd2 {[%clk 0:03:57.7]} 15...
a6 {[%clk 0:04:12]} 16. h4 {[%clk 0:03:55.8]} 16... Rab8 {[%clk 0:03:57.3]} 17.
Rac1 {[%clk 0:03:54.4]} 17... a5 {[%clk 0:03:56.2]} 18. Be3 {[%clk 0:03:41.4]}
18... Qd7 {[%clk 0:03:46.8]} 19. Nf1 {[%clk 0:03:32.1]} 19... a4 {[%clk
0:03:42.8]} 20. c4 {[%clk 0:03:19.1]} 20... axb3 {[%clk 0:03:31.9]} 21. axb3
{[%clk 0:03:17.9]} 21... bxc4 {[%clk 0:03:30.5]} 22. bxc4 {[%clk 0:03:17]} 22...
Bg4 {[%clk 0:03:21.9]} 23. Qc2 {[%clk 0:02:59.4]} 23... Nb4 {[%clk 0:03:18.2]}
24. Qc3 {[%clk 0:02:45.8]} 24... Na2 {[%clk 0:03:16.1]} 25. Qa5 {[%clk
0:02:34.2]} 25... Nxc1 {[%clk 0:03:12.9]} 26. Rxc1 {[%clk 0:02:34.1]} 26... Be6
{[%clk 0:03:07.2]} 27. c5 {[%clk 0:02:29.4]} 27... Nc6 {[%clk 0:03:05.8]} 28.
Qc3 {[%clk 0:02:22.3]} 28... Qd3 {[%clk 0:03:03.7]} 29. Qxd3 {[%clk 0:02:18.9]}
29... Rxd3 {[%clk 0:03:03.6]} 30. N1d2 {[%clk 0:02:15.1]} 30... Bf8 {[%clk
0:02:59.7]} 31. Bf1 {[%clk 0:02:14]} 31... Rdd8 {[%clk 0:02:54.6]} 32. Nc4
{[%clk 0:02:13.5]} 32... Nd4 {[%clk 0:02:49.4]} 33. Bxd4 {[%clk 0:02:03.5]}
33... exd4 {[%clk 0:02:49.3]} 34. Nb6 {[%clk 0:02:02.8]} 34... Bxc5 {[%clk
0:02:45.5]} 35. Rxc5 {[%clk 0:02:00.2]} 35... Rxb6 {[%clk 0:02:44.7]} 36. e5
{[%clk 0:01:56.3]} 36... d3 {[%clk 0:02:38.4]} 37. Rc1 {[%clk 0:01:44.9]} 37...
fxe5 {[%clk 0:02:27.9]} 38. Nxe5 {[%clk 0:01:44.1]} 38... d2 {[%clk 0:02:27.4]}
39. Rd1 {[%clk 0:01:43.6]} 39... Bb3 {[%clk 0:02:26.3]} 40. Bc4+ {[%clk
0:01:39.7]} 40... Kg7 {[%clk 0:02:18.4]} 41. Bxb3 {[%clk 0:01:36.9]} 41... Rxb3
{[%clk 0:02:18.3]} 42. Kf1 {[%clk 0:01:32]} 42... Rc3 {[%clk 0:02:05.1]} 43. Nf3
{[%clk 0:01:30]} 43... Rxf3 {[%clk 0:02:00.5]} 0-1

[Event "Live Chess"]
[Site "Chess.com"]
[Date "2023.05.20"]
[Round "-"]
[White "onemoretime1975"]
[Black "JoshMcK"]
[Result "1-0"]
[WhiteElo "1916"]
[BlackElo "1568"]
[TimeControl "300"]
[EndTime "12:39:26 PDT"]
[Termination "onemoretime1975 won by checkmate"]

1. e4 {[%clk 0:04:56.3]} 1... c6 {[%clk 0:04:55.2]} 2. d4 {[%clk 0:04:54.4]}
2... d5 {[%clk 0:04:54.2]} 3. exd5 {[%clk 0:04:52.8]} 3... cxd5 {[%clk
0:04:54.1]} 4. Nf3 {[%clk 0:04:50.3]} 4... Nf6 {[%clk 0:04:50]} 5. Bd3 {[%clk
0:04:46.9]} 5... Bg4 {[%clk 0:04:46.4]} 6. c3 {[%clk 0:04:45.6]} 6... Nc6 {[%clk
0:04:43.7]} 7. Bf4 {[%clk 0:04:41.7]} 7... e6 {[%clk 0:04:39.6]} 8. Nbd2 {[%clk
0:04:37.5]} 8... Bd6 {[%clk 0:04:38]} 9. Bxd6 {[%clk 0:04:35.2]} 9... Qxd6
{[%clk 0:04:37.9]} 10. O-O {[%clk 0:04:32.4]} 10... O-O {[%clk 0:04:32.3]} 11.
Qb3 {[%clk 0:04:31]} 11... b6 {[%clk 0:04:28.2]} 12. Rae1 {[%clk 0:04:27.3]}
12... Na5 {[%clk 0:04:26.5]} 13. Qc2 {[%clk 0:04:22]} 13... Bxf3 {[%clk
0:04:06.3]} 14. Nxf3 {[%clk 0:04:16.7]} 14... Rac8 {[%clk 0:04:05.9]} 15. Ne5
{[%clk 0:04:08.4]} 15... Nc4 {[%clk 0:04:02.4]} 16. Nxc4 {[%clk 0:04:04.2]}
16... dxc4 {[%clk 0:04:02.3]} 17. Be2 {[%clk 0:03:58.1]} 17... b5 {[%clk
0:04:01]} 18. Bf3 {[%clk 0:03:54.5]} 18... Nd5 {[%clk 0:03:53.2]} 19. g3 {[%clk
0:03:50]} 19... a5 {[%clk 0:03:45.3]} 20. Bxd5 {[%clk 0:03:45.2]} 20... exd5
{[%clk 0:03:42.5]} 21. Re5 {[%clk 0:03:42.8]} 21... Rce8 {[%clk 0:03:39.8]} 22.
Rfe1 {[%clk 0:03:40.3]} 22... Rxe5 {[%clk 0:03:36.9]} 23. Rxe5 {[%clk
0:03:37.9]} 23... f6 {[%clk 0:03:29.6]} 24. Re3 {[%clk 0:03:32.1]} 24... Kf7
{[%clk 0:03:27.9]} 25. Qe2 {[%clk 0:03:29.1]} 25... h6 {[%clk 0:03:16.2]} 26.
Qh5+ {[%clk 0:03:24.5]} 26... Kg8 {[%clk 0:03:14.6]} 27. Qg4 {[%clk 0:03:06.7]}
27... Qd8 {[%clk 0:03:06.9]} 28. Qe6+ {[%clk 0:03:00.2]} 28... Kh8 {[%clk
0:03:01.7]} 29. Qc6 {[%clk 0:02:57.8]} 29... b4 {[%clk 0:02:50.7]} 30. cxb4
{[%clk 0:02:52.1]} 30... axb4 {[%clk 0:02:49.6]} 31. Qb5 {[%clk 0:02:49.1]}
31... c3 {[%clk 0:02:41]} 32. bxc3 {[%clk 0:02:44.3]} 32... bxc3 {[%clk
0:02:40]} 33. Rxc3 {[%clk 0:02:42.4]} 33... Qa8 {[%clk 0:02:34]} 34. a3 {[%clk
0:02:31]} 34... Rb8 {[%clk 0:02:30.4]} 35. Qc5 {[%clk 0:02:28.3]} 35... Qb7
{[%clk 0:02:15.2]} 36. Kg2 {[%clk 0:02:21.6]} 36... Kg8 {[%clk 0:02:06.8]} 37.
a4 {[%clk 0:02:17.9]} 37... Kf7 {[%clk 0:02:00.4]} 38. a5 {[%clk 0:02:15.4]}
38... Ke6 {[%clk 0:01:58.2]} 39. Re3+ {[%clk 0:02:06.7]} 39... Kf5 {[%clk
0:01:54.8]} 40. h4 {[%clk 0:01:59.6]} 40... Qd7 {[%clk 0:01:47.3]} 41. Qc2+
{[%clk 0:01:43.9]} 41... Kg4 {[%clk 0:01:39.1]} 42. Qg6# {[%clk 0:01:39.1]} 1-0

[Event "Live Chess"]
[Site "Chess.com"]
[Date "2023.05.20"]
[Round "-"]
[White "Olisingapore"]
[Black "KeithArkell"]
[Result "0-1"]
[WhiteElo "1899"]
[BlackElo "2615"]
[TimeControl "300"]
[EndTime "12:39:29 PDT"]
[Termination "KeithArkell won by checkmate"]

1. d4 {[%clk 0:04:55.8]} 1... e6 {[%clk 0:04:58.6]} 2. c4 {[%clk 0:04:55.2]}
2... Bb4+ {[%clk 0:04:57.1]} 3. Nd2 {[%clk 0:04:54.1]} 3... c5 {[%clk
0:04:55.9]} 4. d5 {[%clk 0:04:49.1]} 4... Nf6 {[%clk 0:04:53]} 5. a3 {[%clk
0:04:43.7]} 5... Bxd2+ {[%clk 0:04:49.9]} 6. Qxd2 {[%clk 0:04:43.1]} 6... d6
{[%clk 0:04:47.1]} 7. g3 {[%clk 0:04:42.4]} 7... e5 {[%clk 0:04:46.3]} 8. Bg2
{[%clk 0:04:41.1]} 8... O-O {[%clk 0:04:45.2]} 9. e4 {[%clk 0:04:40.7]} 9... a6
{[%clk 0:04:40.8]} 10. Nf3 {[%clk 0:04:39.8]} 10... b5 {[%clk 0:04:40]} 11. b3
{[%clk 0:04:18.7]} 11... Nxe4 {[%clk 0:04:37.7]} 12. Qd3 {[%clk 0:04:16.7]}
12... f5 {[%clk 0:04:33]} 13. O-O {[%clk 0:04:14.8]} 13... Nd7 {[%clk
0:04:29.3]} 14. Re1 {[%clk 0:04:12.8]} 14... Ndf6 {[%clk 0:04:26.1]} 15. Nd2
{[%clk 0:04:03.1]} 15... Nxd2 {[%clk 0:04:23.7]} 16. Bxd2 {[%clk 0:03:59.8]}
16... Bd7 {[%clk 0:04:22.7]} 17. b4 {[%clk 0:03:47.7]} 17... bxc4 {[%clk
0:04:21]} 18. Qxc4 {[%clk 0:03:43.8]} 18... Bb5 {[%clk 0:04:18.6]} 19. Qa2
{[%clk 0:03:41.6]} 19... cxb4 {[%clk 0:04:12.2]} 20. Bxb4 {[%clk 0:03:40.7]}
20... a5 {[%clk 0:04:11.5]} 21. Bc3 {[%clk 0:03:37.6]} 21... Qc7 {[%clk
0:04:06.1]} 22. Rec1 {[%clk 0:03:31.8]} 22... Qb6 {[%clk 0:03:52.9]} 23. a4
{[%clk 0:03:25.6]} 23... Bd3 {[%clk 0:03:50.2]} 24. Qd2 {[%clk 0:03:19]} 24...
Be4 {[%clk 0:03:46.1]} 25. Bxe4 {[%clk 0:03:17]} 25... Nxe4 {[%clk 0:03:45.3]}
26. Qd3 {[%clk 0:03:10.6]} 26... Qxf2+ {[%clk 0:03:43.9]} 27. Kh1 {[%clk
0:03:06.4]} 27... Qa7 {[%clk 0:03:40.9]} 28. Be1 {[%clk 0:02:45.7]} 28... Rab8
{[%clk 0:03:26.4]} 29. Rab1 {[%clk 0:02:40]} 29... Rxb1 {[%clk 0:03:23.3]} 30.
Rxb1 {[%clk 0:02:34.4]} 30... Rc8 {[%clk 0:03:12.9]} 31. Qf3 {[%clk 0:02:17.9]}
31... g6 {[%clk 0:03:09.8]} 32. Qb3 {[%clk 0:02:05.1]} 32... Qc5 {[%clk
0:02:57.5]} 33. Qf3 {[%clk 0:01:36.9]} 33... Qc4 {[%clk 0:02:54.1]} 34. Bxa5
{[%clk 0:01:15.5]} 34... Qxd5 {[%clk 0:02:51]} 35. Kg1 {[%clk 0:01:03.3]} 35...
Qxa5 {[%clk 0:02:48.4]} 36. Qb3+ {[%clk 0:00:57.9]} 36... d5 {[%clk 0:02:46.8]}
37. Qb7 {[%clk 0:00:55]} 37... Qc5+ {[%clk 0:02:43.8]} 38. Kg2 {[%clk
0:00:53.4]} 38... Qf2+ {[%clk 0:02:39.5]} 39. Kh3 {[%clk 0:00:50.1]} 39... Ng5+
{[%clk 0:02:34.8]} 40. Kh4 {[%clk 0:00:49.1]} 40... Nf3+ {[%clk 0:02:33.4]} 41.
Kh3 {[%clk 0:00:48]} 41... Qxh2# {[%clk 0:02:32.6]} 0-1

[Event "Live Chess"]
[Site "Chess.com"]
[Date "2023.05.20"]
[Round "-"]
[White "bristolunichess"]
[Black "LanceMaster23"]
[Result "0-1"]
[WhiteElo "1762"]
[BlackElo "1865"]
[TimeControl "300"]
[EndTime "12:39:33 PDT"]
[Termination "LanceMaster23 won by checkmate"]

1. e4 {[%clk 0:04:58.7]} 1... c5 {[%clk 0:04:58.6]} 2. Nf3 {[%clk 0:04:57.9]}
2... Nc6 {[%clk 0:04:57.8]} 3. d4 {[%clk 0:04:57.5]} 3... cxd4 {[%clk
0:04:57.2]} 4. Nxd4 {[%clk 0:04:57.4]} 4... Qc7 {[%clk 0:04:56.4]} 5. Be3 {[%clk
0:04:39.5]} 5... Nf6 {[%clk 0:04:53.3]} 6. f3 {[%clk 0:04:26.3]} 6... e6 {[%clk
0:04:51.6]} 7. Nc3 {[%clk 0:04:08.4]} 7... a6 {[%clk 0:04:50]} 8. a3 {[%clk
0:04:04.6]} 8... Be7 {[%clk 0:04:48.2]} 9. Be2 {[%clk 0:04:01.9]} 9... b5 {[%clk
0:04:43.1]} 10. g4 {[%clk 0:03:59.9]} 10... h6 {[%clk 0:04:41.7]} 11. h4 {[%clk
0:03:58.6]} 11... d6 {[%clk 0:04:39.9]} 12. Qd2 {[%clk 0:03:57.4]} 12... Nxd4
{[%clk 0:04:38.8]} 13. Bxd4 {[%clk 0:03:56.3]} 13... e5 {[%clk 0:04:36.2]} 14.
Be3 {[%clk 0:03:55.1]} 14... Bb7 {[%clk 0:04:35]} 15. O-O-O {[%clk 0:03:53.5]}
15... Nd7 {[%clk 0:04:24.6]} 16. g5 {[%clk 0:03:41.3]} 16... hxg5 {[%clk
0:04:21]} 17. hxg5 {[%clk 0:03:41.2]} 17... Rg8 {[%clk 0:04:04.4]} 18. Nd5
{[%clk 0:03:35.7]} 18... Bxd5 {[%clk 0:04:00.6]} 19. Qxd5 {[%clk 0:03:33.1]}
19... Rc8 {[%clk 0:03:59.5]} 20. g6 {[%clk 0:03:28.9]} 20... Qxc2# {[%clk
0:03:57.4]} 0-1

[Event "Live Chess"]
[Site "Chess.com"]
[Date "2023.05.20"]
[Round "-"]
[White "Man-Del-Brot"]
[Black "manthanit"]
[Result "0-1"]
[WhiteElo "1121"]
[BlackElo "1006"]
[TimeControl "300"]
[EndTime "12:39:42 PDT"]
[Termination "manthanit won by checkmate"]

1. d4 {[%clk 0:04:55.7]} 1... e6 {[%clk 0:04:57.8]} 2. e4 {[%clk 0:04:51.3]}
2... d5 {[%clk 0:04:57.1]} 3. e5 {[%clk 0:04:49.7]} 3... c5 {[%clk 0:04:54.9]}
4. Nf3 {[%clk 0:04:46.1]} 4... a6 {[%clk 0:04:53.9]} 5. c3 {[%clk 0:04:44.3]}
5... Nc6 {[%clk 0:04:51.6]} 6. Be2 {[%clk 0:04:33.1]} 6... Qb6 {[%clk 0:04:50]}
7. Qa4 {[%clk 0:04:20.2]} 7... Bd7 {[%clk 0:04:44.9]} 8. Qb3 {[%clk 0:04:12]}
8... Qxb3 {[%clk 0:04:39.7]} 9. axb3 {[%clk 0:04:10.4]} 9... cxd4 {[%clk
0:04:39.1]} 10. cxd4 {[%clk 0:04:08.8]} 10... Bb4+ {[%clk 0:04:36]} 11. Bd2
{[%clk 0:04:06.8]} 11... Nge7 {[%clk 0:04:34.6]} 12. O-O {[%clk 0:03:50.2]}
12... Nf5 {[%clk 0:04:32.7]} 13. Bxb4 {[%clk 0:03:46.6]} 13... Nxb4 {[%clk
0:04:30.9]} 14. Rd1 {[%clk 0:03:37.9]} 14... O-O {[%clk 0:04:27.5]} 15. Nc3
{[%clk 0:03:29.1]} 15... b5 {[%clk 0:04:23.5]} 16. Ra5 {[%clk 0:03:14.1]} 16...
Rfc8 {[%clk 0:04:12]} 17. Rda1 {[%clk 0:03:10.1]} 17... Nc2 {[%clk 0:04:08.4]}
18. R1a2 {[%clk 0:02:58.1]} 18... b4 {[%clk 0:04:06.8]} 19. Na4 {[%clk
0:02:51.6]} 19... Ncxd4 {[%clk 0:04:01.9]} 20. Nxd4 {[%clk 0:02:46.6]} 20...
Nxd4 {[%clk 0:04:00.3]} 21. Kf1 {[%clk 0:02:19]} 21... Rc1+ {[%clk 0:03:55.6]}
22. Bd1 {[%clk 0:02:08.1]} 22... Rxd1# {[%clk 0:03:54]} 0-1

[Event "Live Chess"]
[Site "Chess.com"]
[Date "2023.05.20"]
[Round "-"]
[White "ossie57"]
[Black "MaximKris"]
[Result "1-0"]
[WhiteElo "1914"]
[BlackElo "1849"]
[TimeControl "300"]
[EndTime "12:39:46 PDT"]
[Termination "ossie57 won by checkmate"]

1. d4 {[%clk 0:04:57.5]} 1... d5 {[%clk 0:04:58.8]} 2. Nc3 {[%clk 0:04:56.1]}
2... Nf6 {[%clk 0:04:56.1]} 3. Bf4 {[%clk 0:04:55]} 3... Bf5 {[%clk 0:04:55]} 4.
e3 {[%clk 0:04:53]} 4... e6 {[%clk 0:04:53.9]} 5. f3 {[%clk 0:04:52]} 5... Bd6
{[%clk 0:04:53.3]} 6. Bd3 {[%clk 0:04:35.9]} 6... Bxf4 {[%clk 0:04:51.7]} 7.
exf4 {[%clk 0:04:33.1]} 7... Bxd3 {[%clk 0:04:51.6]} 8. Qxd3 {[%clk 0:04:31.9]}
8... Qd6 {[%clk 0:04:51.5]} 9. Nge2 {[%clk 0:04:29.8]} 9... O-O {[%clk 0:04:50]}
10. g4 {[%clk 0:04:28.7]} 10... Nc6 {[%clk 0:04:49.2]} 11. a3 {[%clk 0:04:26.5]}
11... Nd7 {[%clk 0:04:45.3]} 12. h4 {[%clk 0:04:22.2]} 12... f6 {[%clk
0:04:44.4]} 13. f5 {[%clk 0:04:07.1]} 13... e5 {[%clk 0:04:25.2]} 14. Nb5 {[%clk
0:03:57.1]} 14... Qe7 {[%clk 0:04:14.4]} 15. Nxc7 {[%clk 0:03:55.2]} 15... Rac8
{[%clk 0:04:10.3]} 16. Nxd5 {[%clk 0:03:54.2]} 16... Qd6 {[%clk 0:04:08.9]} 17.
Qb3 {[%clk 0:03:30.9]} 17... Kh8 {[%clk 0:03:53.8]} 18. O-O-O {[%clk 0:03:19.7]}
18... Na5 {[%clk 0:03:33]} 19. Qb5 {[%clk 0:03:18.5]} 19... Nc4 {[%clk
0:02:51.4]} 20. dxe5 {[%clk 0:03:05.9]} 20... Qxe5 {[%clk 0:02:45.5]} 21. Nec3
{[%clk 0:02:41.3]} 21... Ndb6 {[%clk 0:02:27.8]} 22. Rhe1 {[%clk 0:02:38.5]}
22... Nxa3 {[%clk 0:02:20.9]} 23. bxa3 {[%clk 0:02:26.7]} 23... Qb8 {[%clk
0:02:18.2]} 24. Nxb6 {[%clk 0:02:00.1]} 24... axb6 {[%clk 0:02:18.1]} 25. Rd3
{[%clk 0:01:52.2]} 25... Qf4+ {[%clk 0:02:10]} 26. Kb2 {[%clk 0:01:48.1]} 26...
Qg3 {[%clk 0:01:36.6]} 27. Red1 {[%clk 0:01:46.7]} 27... Qxh4 {[%clk 0:01:23]}
28. Qd7 {[%clk 0:01:45.6]} 28... h6 {[%clk 0:01:10.5]} 29. Qxb7 {[%clk
0:01:42.9]} 29... Rb8 {[%clk 0:01:07.9]} 30. Qe7 {[%clk 0:01:38.1]} 30... Qg5
{[%clk 0:00:52.8]} 31. Rd8 {[%clk 0:01:22.5]} 31... Rbxd8 {[%clk 0:00:42.8]} 32.
Rxd8 {[%clk 0:01:22.4]} 32... Rxd8 {[%clk 0:00:42.4]} 33. Qxd8+ {[%clk
0:01:21.9]} 33... Kh7 {[%clk 0:00:42.3]} 34. Qe8 {[%clk 0:01:15]} 34... Qf4
{[%clk 0:00:38.3]} 35. Qg6+ {[%clk 0:01:13.2]} 35... Kh8 {[%clk 0:00:36.7]} 36.
Qe8+ {[%clk 0:01:12.3]} 36... Kh7 {[%clk 0:00:34.4]} 37. Qe4 {[%clk 0:01:11.3]}
37... Qxe4 {[%clk 0:00:27.5]} 38. Nxe4 {[%clk 0:01:08.3]} 38... Kg8 {[%clk
0:00:27.4]} 39. Kb3 {[%clk 0:01:07.1]} 39... Kf8 {[%clk 0:00:27.3]} 40. Kb4
{[%clk 0:01:06.6]} 40... Ke7 {[%clk 0:00:27.2]} 41. Kb5 {[%clk 0:01:06.2]} 41...
Kf7 {[%clk 0:00:25.5]} 42. Kxb6 {[%clk 0:01:05.6]} 42... g6 {[%clk 0:00:25.4]}
43. fxg6+ {[%clk 0:01:04.4]} 43... Kxg6 {[%clk 0:00:25.3]} 44. a4 {[%clk
0:01:03.8]} 44... f5 {[%clk 0:00:25.2]} 45. Nf2 {[%clk 0:01:01]} 45... fxg4
{[%clk 0:00:24.4]} 46. fxg4 {[%clk 0:01:00.3]} 46... Kg5 {[%clk 0:00:24.3]} 47.
a5 {[%clk 0:00:59.5]} 47... Kf4 {[%clk 0:00:23.5]} 48. a6 {[%clk 0:00:58.7]}
48... Kg3 {[%clk 0:00:23.4]} 49. a7 {[%clk 0:00:55.8]} 49... Kxf2 {[%clk
0:00:22.6]} 50. a8=Q {[%clk 0:00:55.1]} 50... Kg3 {[%clk 0:00:22.5]} 51. Qe4
{[%clk 0:00:52.4]} 51... Kh4 {[%clk 0:00:21.1]} 52. Qf5 {[%clk 0:00:50.8]} 52...
h5 {[%clk 0:00:20.1]} 53. Qxh5+ {[%clk 0:00:49.7]} 53... Kg3 {[%clk 0:00:20]}
54. g5 {[%clk 0:00:48.9]} 54... Kf2 {[%clk 0:00:19.9]} 55. g6 {[%clk 0:00:48.4]}
55... Kg2 {[%clk 0:00:19.8]} 56. g7 {[%clk 0:00:47.6]} 56... Kf2 {[%clk
0:00:18.4]} 57. Qg4 {[%clk 0:00:46.2]} 57... Ke3 {[%clk 0:00:18.3]} 58. c4
{[%clk 0:00:45.1]} 58... Kd2 {[%clk 0:00:18.2]} 59. c5 {[%clk 0:00:44.5]} 59...
Kc3 {[%clk 0:00:18.1]} 60. c6 {[%clk 0:00:43.9]} 60... Kb2 {[%clk 0:00:18]} 61.
c7 {[%clk 0:00:43.3]} 61... Ka3 {[%clk 0:00:17.9]} 62. Qd4 {[%clk 0:00:39.7]}
62... Kb3 {[%clk 0:00:17.8]} 63. Qc5 {[%clk 0:00:38.6]} 63... Kb2 {[%clk
0:00:17.7]} 64. g8=Q {[%clk 0:00:36.3]} 64... Ka1 {[%clk 0:00:15.9]} 65. Qg7+
{[%clk 0:00:35.3]} 65... Kb1 {[%clk 0:00:15.8]} 66. Qb4+ {[%clk 0:00:34.2]}
66... Ka2 {[%clk 0:00:14.3]} 67. Qf7+ {[%clk 0:00:32.7]} 67... Ka1 {[%clk
0:00:13.2]} 68. Qc3+ {[%clk 0:00:30.3]} 68... Kb1 {[%clk 0:00:12.4]} 69. Qf1+
{[%clk 0:00:28.3]} 69... Ka2 {[%clk 0:00:11.5]} 70. Qfa1# {[%clk 0:00:27.4]} 1-0